[Event "MČR v bleskovém šachu družstev 2019"]
[Site "Teplice, Czech Republic"]
[Date "2019.09.14"]
[Round "7.7"]
[White "Marsalek, Zdenek"]
[Black "Cech, Pavel"]
[Result "0-1"]
[TimeControl "3 mim. + 2 s"]
[BlackTitle "IM"]
[WhiteElo "2272"]
[BlackElo "2387"]

1. d4 {[%clk 00:03:04]} {[%emt 00:02:43]} Nf6 {[%clk 00:03:02]} {[%emt
00:00:03]} 2. Nf3 {[%clk 00:03:05]} d5 {[%clk 00:03:03]} 3. g3 {[%clk
00:03:06]} {[%emt 00:00:03]} Bf5 {[%clk 00:03:04]} {[%emt 00:00:01]} 4. Bg2
{[%clk 00:03:07]} e6 {[%clk 00:03:05]} {[%emt 00:00:02]} 5. O-O {[%clk
00:03:07]} {[%emt 00:00:01]} h6 {[%clk 00:02:58]} {[%emt 00:00:09]} 6. c4
{[%clk 00:03:08]} {[%emt 00:00:01]} c6 {[%clk 00:02:59]} {[%emt 00:00:01]} 7.
Qb3 {[%clk 00:03:08]} {[%emt 00:00:02]} Qb6 {[%clk 00:02:49]} {[%emt 00:00:11]}
8. c5 {[%clk 00:03:09]} {[%emt 00:00:01]} Qa6 {[%clk 00:02:42]} {[%emt
00:00:10]} 9. Nc3 {[%clk 00:03:07]} {[%emt 00:00:03]} b6 {[%clk 00:02:40]}
{[%emt 00:00:04]} 10. cxb6 {[%clk 00:03:05]} {[%emt 00:00:04]} axb6 {[%clk
00:02:41]} {[%emt 00:00:01]} 11. a4 {[%clk 00:02:57]} {[%emt 00:00:10]} Bd6
{[%clk 00:02:36]} {[%emt 00:00:06]} 12. Bf4 {[%clk 00:02:56]} {[%emt 00:00:03]}
Bxf4 {[%clk 00:02:36]} {[%emt 00:00:03]} 13. gxf4 {[%clk 00:02:57]} {[%emt
00:00:02]} O-O {[%clk 00:02:35]} {[%emt 00:00:02]} 14. Ne5 {[%clk 00:02:53]}
{[%emt 00:00:05]} Nfd7 {[%clk 00:02:33]} {[%emt 00:00:05]} 15. Rfc1 {[%clk
00:02:46]} {[%emt 00:00:08]} Nxe5 {[%clk 00:02:30]} {[%emt 00:00:05]} 16. fxe5
{[%clk 00:02:46]} {[%emt 00:00:02]} Nd7 {[%clk 00:02:00]} {[%emt 00:00:33]} 17.
Bf1 {[%clk 00:02:43]} {[%emt 00:00:05]} Qa5 {[%clk 00:01:57]} {[%emt 00:00:04]}
18. e3 {[%clk 00:02:23]} {[%emt 00:00:22]} Rac8 {[%clk 00:01:46]} {[%emt
00:00:14]} 19. Ne2 {[%clk 00:02:17]} {[%emt 00:00:08]} c5 {[%clk 00:01:33]}
{[%emt 00:00:15]} 20. Nc3 {[%clk 00:02:09]} {[%emt 00:00:10]} f6 {[%clk
00:01:24]} {[%emt 00:00:11]} 21. exf6 {[%clk 00:02:05]} {[%emt 00:00:06]} Rxf6
{[%clk 00:01:20]} {[%emt 00:00:06]} 22. Qb5 {[%clk 00:01:24]} {[%emt 00:00:43]}
Qa7 {[%clk 00:01:21]} {[%emt 00:00:01]} 23. a5 {[%clk 00:01:15]} {[%emt
00:00:10]} bxa5 {[%clk 00:00:45]} {[%emt 00:00:38]} 24. Rxa5 {[%clk 00:01:13]}
{[%emt 00:00:04]} Qc7 {[%clk 00:00:45]} {[%emt 00:00:02]} 25. f4 {[%clk
00:01:08]} {[%emt 00:00:07]} Rg6+ {[%clk 00:00:40]} {[%emt 00:00:08]} 26. Kh1
{[%clk 00:01:04]} {[%emt 00:00:06]} cxd4 {[%clk 00:00:38]} {[%emt 00:00:05]}
0-1

[Event "MČR v bleskovém šachu družstev 2019"]
[Site "Teplice, Czech Republic"]
[Date "2019.09.14"]
[Round "7.8"]
[White "Sodoma, Jan"]
[Black "Duran, Tomas"]
[Result "1-0"]
[TimeControl "3 mim. + 2 s"]
[WhiteTitle "IM"]
[WhiteElo "2193"]
[BlackElo "2135"]

1. Nf3 {[%clk 00:03:02]} {[%emt 00:00:02]} Nf6 {[%clk 00:03:03]} {[%emt
00:00:01]} 2. c4 {[%clk 00:03:03]} {[%emt 00:00:01]} g6 {[%clk 00:03:04]}
{[%emt 00:00:02]} 3. b3 {[%clk 00:03:04]} Bg7 {[%clk 00:03:05]} 4. Bb2 {[%clk
00:03:05]} {[%emt 00:00:01]} O-O {[%clk 00:03:05]} {[%emt 00:00:02]} 5. g3
{[%clk 00:03:05]} {[%emt 00:00:01]} d6 {[%clk 00:03:05]} {[%emt 00:00:02]} 6.
d4 {[%clk 00:03:06]} {[%emt 00:00:01]} c6 {[%clk 00:03:04]} {[%emt 00:00:03]} 7.
Bg2 {[%clk 00:03:07]} {[%emt 00:00:01]} Qc7 {[%clk 00:03:03]} {[%emt 00:00:03]}
8. O-O {[%clk 00:03:07]} {[%emt 00:00:02]} Nbd7 {[%clk 00:03:03]} {[%emt
00:00:03]} 9. Nc3 {[%clk 00:03:02]} {[%emt 00:00:07]} Re8 {[%clk 00:02:56]}
{[%emt 00:00:09]} 10. Qc2 {[%clk 00:02:25]} {[%emt 00:00:38]} a5 {[%clk
00:02:50]} {[%emt 00:00:09]} 11. Rfd1 {[%clk 00:02:25]} {[%emt 00:00:02]} e5
{[%clk 00:02:48]} {[%emt 00:00:04]} 12. dxe5 {[%clk 00:02:26]} {[%emt
00:00:01]} dxe5 {[%clk 00:02:49]} {[%emt 00:00:01]} 13. Ng5 {[%clk 00:02:25]}
{[%emt 00:00:03]} Nc5 {[%clk 00:02:29]} {[%emt 00:00:22]} 14. Ba3 {[%clk
00:02:20]} {[%emt 00:00:06]} Bf8 {[%clk 00:02:29]} {[%emt 00:00:03]} 15. Bb2
{[%clk 00:01:39]} {[%emt 00:00:43]} h6 {[%clk 00:02:21]} {[%emt 00:00:10]} 16.
Nge4 {[%clk 00:01:38]} {[%emt 00:00:03]} Nfxe4 {[%clk 00:02:19]} {[%emt
00:00:04]} 17. Nxe4 {[%clk 00:01:38]} {[%emt 00:00:01]} Nxe4 {[%clk 00:02:19]}
{[%emt 00:00:02]} 18. Bxe4 {[%clk 00:01:39]} {[%emt 00:00:02]} f5 {[%clk
00:02:19]} {[%emt 00:00:02]} 19. Bg2 {[%clk 00:01:38]} {[%emt 00:00:02]} Be6
{[%clk 00:02:20]} {[%emt 00:00:02]} 20. e4 {[%clk 00:01:37]} {[%emt 00:00:03]}
f4 {[%clk 00:01:56]} {[%emt 00:00:25]} 21. Qc3 {[%clk 00:01:14]} {[%emt
00:00:25]} fxg3 {[%clk 00:01:51]} {[%emt 00:00:08]} 22. Qxg3 {[%clk 00:00:57]}
{[%emt 00:00:18]} Bf7 {[%clk 00:01:49]} {[%emt 00:00:04]} 23. Bh3 {[%clk
00:00:58]} {[%emt 00:00:02]} Rad8 {[%clk 00:01:48]} {[%emt 00:00:03]} 24. Rxd8
{[%clk 00:00:48]} {[%emt 00:00:11]} Rxd8 {[%clk 00:01:49]} {[%emt 00:00:01]} 25.
Bxe5 {[%clk 00:00:47]} {[%emt 00:00:04]} Qe7 {[%clk 00:01:32]} {[%emt
00:00:19]} 26. Re1 {[%clk 00:00:34]} {[%emt 00:00:15]} Rd2 {[%clk 00:01:22]}
{[%emt 00:00:11]} 27. a4 {[%clk 00:00:34]} {[%emt 00:00:02]} Qb4 {[%clk
00:00:59]} {[%emt 00:00:25]} 28. Bc3 {[%clk 00:00:30]} {[%emt 00:00:06]} Qd6
{[%clk 00:00:54]} {[%emt 00:00:07]} 29. e5 {[%clk 00:00:22]} {[%emt 00:00:10]}
Qd3 {[%clk 00:00:34]} {[%emt 00:00:22]} 30. e6 {[%clk 00:00:21]} {[%emt
00:00:02]} Be8 {[%clk 00:00:28]} {[%emt 00:00:07]} 31. Qe5 {[%clk 00:00:18]}
{[%emt 00:00:06]} Qxc3 {[%clk 00:00:15]} {[%emt 00:00:15]} 32. Qxc3 {[%clk
00:00:17]} {[%emt 00:00:02]} Bb4 {[%clk 00:00:14]} {[%emt 00:00:03]} 33. Qf6
{[%clk 00:00:13]} {[%emt 00:00:06]} Rd3 {[%clk 00:00:14]} {[%emt 00:00:03]} 34.
Re3 {[%clk 00:00:12]} {[%emt 00:00:02]} Rd1+ {[%clk 00:00:11]} {[%emt
00:00:06]} 35. Kg2 {[%clk 00:00:12]} {[%emt 00:00:01]} Bf8 {[%clk 00:00:05]}
{[%emt 00:00:08]} 36. e7 {[%clk 00:00:12]} {[%emt 00:00:02]} Bg7 {[%clk
00:00:06]} {[%emt 00:00:01]} 37. Qe6+ {[%clk 00:00:11]} {[%emt 00:00:04]} Kh7
{[%clk 00:00:06]} {[%emt 00:00:03]} 38. Qc8 {[%clk 00:00:11]} {[%emt 00:00:01]}
1-0

[Event "MČR v bleskovém šachu družstev 2019"]
[Site "Teplice, Czech Republic"]
[Date "2019.09.14"]
[Round "7.9"]
[White "Jirovsky, Milos"]
[Black "Rubes, Jan"]
[Result "1-0"]
[TimeControl "3 mim. + 2 s"]
[WhiteTitle "GM"]
[BlackTitle "FM"]
[WhiteFideId "303224"]
[BlackFideId "338176"]
[WhiteElo "2499"]
[BlackElo "2316"]

1. Nf3 {[%clk 00:03:03]} {[%emt 00:10:55]} c5 {[%clk 00:02:58]} {[%emt
00:00:06]} 2. c4 {[%clk 00:03:04]} {[%emt 00:00:01]} Nc6 {[%clk 00:02:58]}
{[%emt 00:00:02]} 3. Nc3 {[%clk 00:03:05]} {[%emt 00:00:01]} Nf6 {[%clk
00:02:53]} {[%emt 00:00:07]} 4. g3 {[%clk 00:03:06]} g6 {[%clk 00:02:50]}
{[%emt 00:00:05]} 5. Bg2 {[%clk 00:03:07]} Bg7 {[%clk 00:02:51]} {[%emt
00:00:01]} 6. O-O {[%clk 00:03:08]} {[%emt 00:00:01]} d6 {[%clk 00:02:47]}
{[%emt 00:00:06]} 7. d4 {[%clk 00:03:05]} {[%emt 00:00:05]} cxd4 {[%clk
00:02:45]} {[%emt 00:00:03]} 8. Nxd4 {[%clk 00:03:06]} {[%emt 00:00:01]} Bd7
{[%clk 00:02:46]} {[%emt 00:00:01]} 9. e3 {[%clk 00:03:05]} {[%emt 00:00:03]}
O-O {[%clk 00:02:39]} {[%emt 00:00:09]} 10. b3 {[%clk 00:03:06]} {[%emt
00:00:01]} Qa5 {[%clk 00:02:35]} {[%emt 00:00:07]} 11. Bb2 {[%clk 00:03:06]}
{[%emt 00:00:02]} Qh5 {[%clk 00:02:32]} {[%emt 00:00:05]} 12. Qxh5 {[%clk
00:02:34]} {[%emt 00:00:34]} Nxh5 {[%clk 00:02:32]} {[%emt 00:00:01]} 13. Rfd1
{[%clk 00:02:35]} Nf6 {[%clk 00:02:24]} {[%emt 00:00:10]} 14. Rac1 {[%clk
00:02:32]} {[%emt 00:00:05]} Rfc8 {[%clk 00:02:23]} {[%emt 00:00:03]} 15. h3
{[%clk 00:02:12]} {[%emt 00:00:22]} Rab8 {[%clk 00:02:22]} {[%emt 00:00:03]} 16.
Nce2 {[%clk 00:01:50]} {[%emt 00:00:25]} a6 {[%clk 00:02:20]} {[%emt 00:00:04]}
17. f4 {[%clk 00:01:30]} {[%emt 00:00:22]} Nxd4 {[%clk 00:02:05]} {[%emt
00:00:17]} 18. exd4 {[%clk 00:01:29]} {[%emt 00:00:03]} b5 {[%clk 00:02:00]}
{[%emt 00:00:07]} 19. c5 {[%clk 00:01:29]} {[%emt 00:00:02]} dxc5 {[%clk
00:02:01]} {[%emt 00:00:02]} 20. dxc5 {[%clk 00:01:28]} {[%emt 00:00:03]} Be8
{[%clk 00:01:29]} {[%emt 00:00:34]} 21. Be5 {[%clk 00:01:28]} {[%emt 00:00:02]}
Nd7 {[%clk 00:01:21]} {[%emt 00:00:10]} 22. Bxb8 Nxb8 {[%clk 00:01:22]} 23. Nd4
{[%clk 00:00:54]} {[%emt 00:00:33]} e5 {[%clk 00:01:23]} {[%emt 00:00:01]} 24.
fxe5 {[%clk 00:00:53]} {[%emt 00:00:03]} Bxe5 {[%clk 00:01:24]} 25. g4 {[%clk
00:00:43]} {[%emt 00:00:12]} Bf4 {[%clk 00:01:19]} {[%emt 00:00:06]} 26. Rc2
{[%clk 00:00:41]} {[%emt 00:00:04]} Be3+ {[%clk 00:01:15]} {[%emt 00:00:07]} 27.
Kh1 {[%clk 00:00:39]} {[%emt 00:00:04]} Rd8 {[%clk 00:01:16]} 28. c6 {[%clk
00:00:37]} {[%emt 00:00:04]} Nxc6 {[%clk 00:00:38]} {[%emt 00:00:40]} 29. Bxc6
{[%clk 00:00:38]} {[%emt 00:00:02]} Bxc6+ {[%clk 00:00:37]} {[%emt 00:00:03]}
30. Rxc6 {[%clk 00:00:39]} {[%emt 00:00:01]} Rxd4 {[%clk 00:00:30]} {[%emt
00:00:10]} 31. Rxd4 {[%clk 00:00:40]} Bxd4 {[%clk 00:00:30]} {[%emt 00:00:01]}
32. Rxa6 {[%clk 00:00:40]} {[%emt 00:00:02]} b4 {[%clk 00:00:31]} {[%emt
00:00:01]} 33. Kg2 {[%clk 00:00:41]} {[%emt 00:00:01]} Bb2 {[%clk 00:00:31]}
{[%emt 00:00:02]} 34. Kf3 {[%clk 00:00:42]} Kg7 {[%clk 00:00:32]} {[%emt
00:00:02]} 35. Rb6 {[%clk 00:00:38]} {[%emt 00:00:06]} 1-0

[Event "MČR v bleskovém šachu družstev 2019"]
[Site "Teplice, Czech Republic"]
[Date "2019.09.14"]
[Round "7.10"]
[White "Hadraba, Vladimir"]
[Black "Sokolov, Alexander"]
[Result "0-1"]
[TimeControl "3 mim. + 2 s"]
[BlackTitle "FM"]
[WhiteFideId "301663"]
[BlackFideId "4119177"]
[WhiteElo "2095"]
[BlackElo "2417"]

1. e4 {[%clk 00:03:02]} {[%emt 00:03:45]} c5 {[%clk 00:03:02]} {[%emt
00:00:02]} 2. Nf3 {[%clk 00:03:02]} d6 {[%clk 00:03:02]} {[%emt 00:00:01]} 3.
d4 {[%clk 00:03:02]} {[%emt 00:00:01]} cxd4 {[%clk 00:03:03]} {[%emt 00:00:02]}
4. Nxd4 {[%clk 00:03:02]} {[%emt 00:00:05]} Nf6 {[%clk 00:03:04]} 5. Nc3 {[%clk
00:03:03]} {[%emt 00:00:02]} g6 {[%clk 00:03:05]} 6. Be3 {[%clk 00:03:01]}
{[%emt 00:00:04]} Bg7 {[%clk 00:03:06]} 7. Be2 {[%clk 00:03:00]} {[%emt
00:00:03]} O-O {[%clk 00:03:07]} {[%emt 00:00:02]} 8. f4 {[%clk 00:03:00]}
{[%emt 00:00:01]} Nc6 {[%clk 00:03:08]} {[%emt 00:00:01]} 9. Nb3 {[%clk
00:02:59]} {[%emt 00:00:03]} Be6 {[%clk 00:03:09]} {[%emt 00:00:01]} 10. g4
{[%clk 00:02:59]} {[%emt 00:00:03]} Rc8 {[%clk 00:03:08]} {[%emt 00:00:03]} 11.
f5 {[%clk 00:02:58]} {[%emt 00:00:03]} Bd7 {[%clk 00:03:08]} {[%emt 00:00:02]}
12. Qd2 {[%clk 00:02:55]} {[%emt 00:00:05]} Ne5 {[%clk 00:03:09]} 13. g5 {[%clk
00:02:44]} {[%emt 00:00:13]} Nfg4 {[%clk 00:02:49]} {[%emt 00:00:22]} 14. Bd4
{[%clk 00:02:41]} {[%emt 00:00:05]} Nc4 {[%clk 00:02:42]} {[%emt 00:00:09]} 15.
Bxc4 {[%clk 00:02:35]} {[%emt 00:00:08]} Rxc4 {[%clk 00:02:43]} {[%emt
00:00:01]} 16. Bxg7 {[%clk 00:02:33]} {[%emt 00:00:05]} Kxg7 {[%clk 00:02:44]}
17. O-O-O {[%clk 00:02:30]} {[%emt 00:00:05]} gxf5 {[%clk 00:02:25]} {[%emt
00:00:22]} 18. exf5 {[%clk 00:02:04]} {[%emt 00:00:28]} Bxf5 {[%clk 00:02:25]}
{[%emt 00:00:02]} 19. Nd4 {[%clk 00:02:01]} {[%emt 00:00:05]} Bg6 {[%clk
00:02:17]} {[%emt 00:00:11]} 20. h4 {[%clk 00:01:58]} {[%emt 00:00:06]} h5
{[%clk 00:01:51]} {[%emt 00:00:28]} 21. gxh6+ {[%clk 00:01:52]} {[%emt
00:00:08]} Kh8 {[%clk 00:01:47]} {[%emt 00:00:05]} 22. h5 {[%clk 00:01:50]}
{[%emt 00:00:04]} Bh7 {[%clk 00:01:46]} {[%emt 00:00:03]} 23. Qe2 {[%clk
00:01:44]} {[%emt 00:00:08]} Ne5 {[%clk 00:01:44]} {[%emt 00:00:04]} 24. Nf3
{[%clk 00:01:31]} {[%emt 00:00:15]} Rc5 {[%clk 00:01:26]} {[%emt 00:00:19]} 25.
Nd5 {[%clk 00:01:23]} {[%emt 00:00:10]} Rxc2+ {[%clk 00:01:24]} {[%emt
00:00:04]} 0-1

[Event "MČR v bleskovém šachu družstev 2019"]
[Site "Teplice, Czech Republic"]
[Date "2019.09.14"]
[Round "7.11"]
[White "Dolezal, Radoslav"]
[Black "Kral, David"]
[Result "1-0"]
[TimeControl "3 mim. + 2 s"]
[WhiteTitle "IM"]
[WhiteFideId "304735"]
[BlackFideId "326097"]
[WhiteElo "2359"]
[BlackElo "2028"]

1. d4 {[%clk 00:03:01]} {[%emt 00:00:02]} d5 {[%clk 00:03:04]} 2. Nf3 {[%clk
00:03:01]} {[%emt 00:00:01]} e6 {[%clk 00:03:05]} {[%emt 00:00:01]} 3. g3
{[%clk 00:03:02]} {[%emt 00:00:02]} f5 {[%clk 00:03:07]} 4. Bg2 {[%clk
00:03:03]} {[%emt 00:00:01]} Nf6 {[%clk 00:03:08]} 5. O-O {[%clk 00:03:03]}
{[%emt 00:00:02]} c5 {[%clk 00:03:09]} {[%emt 00:00:01]} 6. c4 {[%clk
00:03:00]} {[%emt 00:00:05]} cxd4 {[%clk 00:03:09]} {[%emt 00:00:03]} 7. cxd5
{[%clk 00:02:53]} {[%emt 00:00:09]} Qxd5 {[%clk 00:02:59]} {[%emt 00:00:12]} 8.
Nxd4 {[%clk 00:02:52]} {[%emt 00:00:03]} Qd7 {[%clk 00:02:47]} {[%emt
00:00:13]} 9. Nc3 {[%clk 00:02:47]} {[%emt 00:00:07]} Be7 {[%clk 00:02:47]}
{[%emt 00:00:03]} 10. Ndb5 {[%clk 00:02:09]} {[%emt 00:00:40]} Na6 {[%clk
00:02:34]} {[%emt 00:00:15]} 11. Bf4 {[%clk 00:02:03]} {[%emt 00:00:07]} O-O
{[%clk 00:02:27]} {[%emt 00:00:09]} 12. Qxd7 {[%clk 00:01:37]} {[%emt
00:00:28]} Nxd7 {[%clk 00:02:24]} {[%emt 00:00:05]} 13. Rad1 {[%clk 00:01:16]}
{[%emt 00:00:23]} e5 {[%clk 00:02:13]} {[%emt 00:00:13]} 14. Bc1 {[%clk
00:00:51]} {[%emt 00:00:27]} e4 {[%clk 00:02:10]} {[%emt 00:00:06]} 15. f3
{[%clk 00:00:26]} {[%emt 00:00:26]} Bc5+ {[%clk 00:02:04]} {[%emt 00:00:07]} 16.
Kh1 {[%clk 00:00:27]} {[%emt 00:00:01]} e3 {[%clk 00:01:57]} {[%emt 00:00:10]}
17. Na4 {[%clk 00:00:28]} {[%emt 00:00:02]} Re8 {[%clk 00:01:43]} {[%emt
00:00:16]} 18. f4 {[%clk 00:00:20]} {[%emt 00:00:09]} Nf6 {[%clk 00:01:34]}
{[%emt 00:00:11]} 19. Nxc5 {[%clk 00:00:19]} {[%emt 00:00:03]} Nxc5 {[%clk
00:01:35]} {[%emt 00:00:01]} 20. Nc7 {[%clk 00:00:20]} {[%emt 00:00:01]} Be6
{[%clk 00:00:53]} {[%emt 00:00:44]} 21. Nxa8 {[%clk 00:00:20]} {[%emt
00:00:02]} Rxa8 {[%clk 00:00:53]} {[%emt 00:00:02]} 22. Bxe3 {[%clk 00:00:21]}
Nce4 {[%clk 00:00:48]} {[%emt 00:00:06]} 23. a3 {[%clk 00:00:22]} {[%emt
00:00:02]} a6 {[%clk 00:00:48]} {[%emt 00:00:02]} 24. Rc1 {[%clk 00:00:21]}
{[%emt 00:00:03]} Ng4 {[%clk 00:00:48]} {[%emt 00:00:02]} 25. Bg1 {[%clk
00:00:16]} {[%emt 00:00:07]} Rd8 {[%clk 00:00:48]} {[%emt 00:00:02]} 26. Bf3
{[%clk 00:00:13]} {[%emt 00:00:04]} Ngf6 {[%clk 00:00:47]} {[%emt 00:00:03]} 27.
Rfd1 {[%clk 00:00:13]} {[%emt 00:00:02]} Bd5 {[%clk 00:00:46]} {[%emt
00:00:04]} 28. Kg2 {[%clk 00:00:11]} {[%emt 00:00:04]} h5 {[%clk 00:00:47]}
{[%emt 00:00:01]} 29. Bd4 {[%clk 00:00:11]} {[%emt 00:00:03]} Kh7 {[%clk
00:00:44]} {[%emt 00:00:06]} 30. Bxf6 {[%clk 00:00:12]} gxf6 {[%clk 00:00:42]}
{[%emt 00:00:04]} 31. Bxe4 {[%clk 00:00:12]} {[%emt 00:00:02]} fxe4 {[%clk
00:00:43]} {[%emt 00:00:01]} 32. Kf2 {[%clk 00:00:13]} Kg6 {[%clk 00:00:42]}
{[%emt 00:00:03]} 33. Rc5 {[%clk 00:00:13]} {[%emt 00:00:02]} e3+ {[%clk
00:00:40]} {[%emt 00:00:04]} 34. Ke1 {[%clk 00:00:13]} {[%emt 00:00:02]} 1-0

[Event "MČR v bleskovém šachu družstev 2019"]
[Site "Teplice, Czech Republic"]
[Date "2019.09.14"]
[Round "7.12"]
[White "Krutsky, Martin"]
[Black "Postupa, Pavel"]
[Result "0-1"]
[TimeControl "3 mim. + 2 s"]
[WhiteFideId "361526"]
[BlackFideId "326410"]
[WhiteElo "1974"]
[BlackElo "2184"]

1. e4 {[%clk 00:03:02]} {[%emt 00:00:01]} c5 {[%clk 00:03:03]} {[%emt
00:00:01]} 2. Nf3 {[%clk 00:03:03]} {[%emt 00:00:01]} d6 {[%clk 00:03:04]}
{[%emt 00:00:01]} 3. d4 {[%clk 00:03:05]} cxd4 {[%clk 00:03:05]} {[%emt
00:00:01]} 4. Nxd4 {[%clk 00:03:06]} {[%emt 00:00:01]} Nf6 {[%clk 00:03:06]} 5.
Nc3 {[%clk 00:03:07]} {[%emt 00:00:01]} a6 {[%clk 00:03:07]} {[%emt 00:00:01]}
6. Be3 {[%clk 00:03:06]} {[%emt 00:00:03]} e5 {[%clk 00:03:08]} {[%emt
00:00:01]} 7. Nb3 {[%clk 00:03:07]} Be6 {[%emt 00:00:02]} 8. f3 h5 {[%clk
00:03:09]} 9. Qd2 {[%clk 00:03:07]} {[%emt 00:00:03]} Nbd7 {[%clk 00:03:07]}
{[%emt 00:00:03]} 10. O-O-O {[%clk 00:03:07]} {[%emt 00:00:03]} Be7 {[%clk
00:03:04]} {[%emt 00:00:05]} 11. g3 {[%clk 00:03:03]} {[%emt 00:00:07]} Qc7
{[%clk 00:03:05]} {[%emt 00:00:01]} 12. Be2 {[%clk 00:03:01]} {[%emt 00:00:04]}
b5 {[%clk 00:03:01]} {[%emt 00:00:05]} 13. h3 {[%clk 00:02:52]} {[%emt
00:00:12]} Nb6 {[%clk 00:02:55]} {[%emt 00:00:07]} 14. Kb1 {[%clk 00:02:35]}
{[%emt 00:00:20]} Nc4 {[%clk 00:02:51]} {[%emt 00:00:06]} 15. Bxc4 {[%clk
00:02:36]} {[%emt 00:00:02]} bxc4 {[%clk 00:02:51]} {[%emt 00:00:01]} 16. Nc1
{[%clk 00:02:36]} {[%emt 00:00:02]} O-O {[%clk 00:02:51]} {[%emt 00:00:02]} 17.
g4 {[%clk 00:02:34]} {[%emt 00:00:05]} h4 {[%clk 00:02:50]} {[%emt 00:00:02]}
18. Bg5 {[%clk 00:02:18]} {[%emt 00:00:18]} Rfb8 {[%clk 00:02:50]} {[%emt
00:00:02]} 19. Bxf6 {[%clk 00:01:41]} {[%emt 00:00:40]} gxf6 {[%clk 00:02:51]}
{[%emt 00:00:02]} 20. Nd5 {[%clk 00:00:44]} {[%emt 00:00:59]} Bxd5 {[%clk
00:02:50]} {[%emt 00:00:02]} 21. exd5 {[%clk 00:00:31]} {[%emt 00:00:16]} c3
{[%clk 00:02:50]} {[%emt 00:00:01]} 22. Qh6 {[%clk 00:00:03]} {[%emt 00:00:30]}
Rxb2+ {[%clk 00:02:49]} {[%emt 00:00:03]} 23. Ka1 {[%clk 00:00:05]} Qa5 {[%clk
00:02:41]} {[%emt 00:00:11]} 24. Rhg1 {[%clk 00:00:04]} {[%emt 00:00:02]} Rab8
{[%clk 00:02:41]} {[%emt 00:00:02]} 0-1

[Event "MČR v bleskovém šachu družstev 2019"]
[Site "Teplice, Czech Republic"]
[Date "2019.09.14"]
[Round "7.13"]
[White "Bernasek, Jan"]
[Black "Formanek, Martin"]
[Result "1-0"]
[TimeControl "3 mim. + 2 s"]
[WhiteTitle "GM"]
[WhiteFideId "311995"]
[BlackFideId "316768"]
[WhiteElo "2526"]
[BlackElo "2230"]

1. b3 {[%clk 00:03:03]} {[%emt 00:03:03]} e5 {[%clk 00:03:02]} {[%emt
00:00:03]} 2. Bb2 {[%clk 00:03:04]} Nc6 {[%clk 00:03:02]} {[%emt 00:00:02]} 3.
g3 {[%clk 00:03:05]} Nf6 {[%clk 00:02:59]} {[%emt 00:00:05]} 4. Bg2 {[%clk
00:03:06]} d5 {[%clk 00:03:00]} 5. e3 {[%clk 00:03:03]} {[%emt 00:00:05]} Bg4
{[%clk 00:02:44]} {[%emt 00:00:19]} 6. Ne2 {[%clk 00:03:02]} {[%emt 00:00:02]}
Qd7 {[%clk 00:02:42]} {[%emt 00:00:04]} 7. h3 {[%clk 00:03:02]} {[%emt
00:00:02]} Be6 {[%clk 00:02:42]} {[%emt 00:00:02]} 8. d3 {[%clk 00:02:50]}
{[%emt 00:00:14]} Be7 {[%clk 00:02:34]} {[%emt 00:00:10]} 9. Nd2 {[%clk
00:02:51]} {[%emt 00:00:02]} O-O {[%clk 00:02:30]} {[%emt 00:00:07]} 10. f4
{[%clk 00:02:48]} {[%emt 00:00:04]} exf4 {[%clk 00:02:21]} {[%emt 00:00:11]} 11.
Nxf4 {[%clk 00:02:49]} Bf5 {[%clk 00:02:16]} {[%emt 00:00:07]} 12. g4 {[%clk
00:02:49]} {[%emt 00:00:02]} Bg6 {[%clk 00:02:17]} {[%emt 00:00:02]} 13. O-O
{[%clk 00:02:48]} {[%emt 00:00:02]} Bc5 {[%clk 00:01:58]} {[%emt 00:00:21]} 14.
Qf3 {[%clk 00:02:34]} {[%emt 00:00:16]} Rae8 {[%clk 00:01:39]} {[%emt
00:00:21]} 15. Rae1 {[%clk 00:02:35]} {[%emt 00:00:01]} d4 {[%clk 00:01:39]}
{[%emt 00:00:02]} 16. e4 {[%clk 00:02:30]} {[%emt 00:00:07]} Ne5 {[%clk
00:01:40]} {[%emt 00:00:01]} 17. Qf2 {[%clk 00:02:20]} {[%emt 00:00:11]} Bb4
{[%clk 00:01:25]} {[%emt 00:00:17]} 18. a3 {[%clk 00:02:16]} {[%emt 00:00:07]}
Bxd2 {[%clk 00:01:26]} 19. Qxd2 {[%clk 00:02:17]} c5 {[%clk 00:01:27]} 20. Qd1
{[%clk 00:02:00]} {[%emt 00:00:18]} Kh8 {[%clk 00:01:12]} {[%emt 00:00:17]} 21.
g5 {[%clk 00:01:52]} {[%emt 00:00:10]} Ng8 {[%clk 00:01:11]} {[%emt 00:00:03]}
22. h4 {[%clk 00:01:52]} {[%emt 00:00:02]} f6 {[%clk 00:01:06]} {[%emt
00:00:07]} 23. Bc1 {[%clk 00:01:45]} {[%emt 00:00:09]} fxg5 {[%clk 00:00:59]}
{[%emt 00:00:09]} 24. hxg5 {[%clk 00:01:46]} Ne7 {[%clk 00:01:00]} 25. Bh3
{[%clk 00:01:46]} {[%emt 00:00:02]} Qd6 {[%clk 00:00:53]} {[%emt 00:00:09]} 26.
Qe2 {[%clk 00:01:46]} {[%emt 00:00:03]} N7c6 {[%clk 00:00:40]} {[%emt
00:00:15]} 27. Qh2 {[%clk 00:01:41]} {[%emt 00:00:07]} Qd8 {[%clk 00:00:36]}
{[%emt 00:00:05]} 28. Kh1 {[%clk 00:01:05]} {[%emt 00:00:37]} b5 {[%clk
00:00:37]} {[%emt 00:00:02]} 29. Ne6 {[%clk 00:01:05]} {[%emt 00:00:02]} Rxf1+
{[%clk 00:00:37]} {[%emt 00:00:02]} 30. Rxf1 {[%clk 00:01:05]} {[%emt
00:00:02]} Qe7 {[%clk 00:00:36]} {[%emt 00:00:03]} 31. Qf4 {[%clk 00:00:58]}
{[%emt 00:00:08]} Kg8 {[%clk 00:00:23]} {[%emt 00:00:16]} 32. b4 {[%clk
00:00:52]} {[%emt 00:00:09]} c4 {[%clk 00:00:22]} {[%emt 00:00:03]} 33. Nc5
{[%clk 00:00:42]} {[%emt 00:00:11]} cxd3 {[%clk 00:00:15]} {[%emt 00:00:10]} 34.
cxd3 {[%clk 00:00:43]} {[%emt 00:00:01]} Qd6 {[%clk 00:00:13]} {[%emt
00:00:03]} 35. Be6+ {[%clk 00:00:40]} {[%emt 00:00:05]} Kh8 {[%clk 00:00:14]}
36. Bd5 {[%clk 00:00:41]} {[%emt 00:00:01]} a5 {[%clk 00:00:11]} {[%emt
00:00:05]} 37. Bxc6 {[%clk 00:00:40]} {[%emt 00:00:03]} Nxc6 {[%clk 00:00:09]}
{[%emt 00:00:04]} 38. Qxd6 {[%emt 00:00:01]} 1-0